bitfinex/quotes_SOLUSD_20250315
["timestamp","ask_amount","ask_price","bid_price","bid_amount"]
[1742054025153,22.63090432,135.18,135.16,0.063]
[1742054025360,13.34994455,135.18,135.16,0.063]
[1742054031464,65.61243019,135.18,135.16,0.063]
[1742054031841,13.34994455,135.18,135.16,0.063]
[1742054034537,65.61243019,135.18,135.16,0.063]
[1742054034742,33.06562141,135.15,135.14,0.063]
[1742054042574,13.06562141,135.15,135.14,0.063]
[1742054045170,13.06562141,135.16,135.14,0.063]
[1742054045955,13.06562141,135.15,135.14,0.063]
[1742054048176,13.06562141,135.16,135.14,0.063]
[1742054048373,0.17216157,135.19,135.15,7.3991]
[1742054048374,13.06562141,135.17,135.15,7.3991]
[1742054050373,13.06562141,135.16,135.15,7.3991]
[1742054055769,13.06562141,135.17,135.15,7.3991]
[1742054058559,0.03,135.16,135.15,7.3991]
[1742054062680,0.03,135.19,135.15,106.4468]
[1742054062872,0.03,135.19,135.15,119.51242141]
[1742054064381,0.28432314,135.24,135.18,13.06562141]
[1742054064581,13.06562141,135.23,135.18,93.61542141]
[1742054064884,13.06562141,135.23,135.19,25.8893]
[1742054066371,33.06562141,135.24,135.19,38.95492141]
[1742054067779,13.06562141,135.24,135.19,75.93982141]
[1742054068687,13.06562141,135.25,135.21,1.6372]
[1742054068892,13.09562141,135.26,135.21,101.33612141]
[1742054069872,13.09562141,135.26,135.22,25.8836]
[1742054070267,0.03,135.24,135.22,25.8836]
[1742054070479,0.03,135.24,135.23,13.06562141]
[1742054070875,0.03,135.26,135.23,93.61542141]
[1742054071901,0.03,135.26,135.24,7.3942]
[1742054072078,0.03,135.26,135.24,87.944]
[1742054072889,0.03,135.26,135.24,101.00962141]
[1742054075382,0.03,135.26,135.24,87.944]
[1742054076299,13.09562141,135.26,135.24,87.944]
[1742054076881,0.03,135.26,135.24,87.944]
[1742054079483,0.03,135.26,135.24,101.00962141]
[1742054080405,0.03,135.26,135.24,87.944]
[1742054081709,0.03,135.26,135.24,7.3942]
[1742054082011,13.06562141,135.25,135.22,87.9449]
[1742054082182,13.06562141,135.23,135.22,88.0079]
[1742054085006,13.06562141,135.24,135.22,88.0079]
[1742054087710,13.06562141,135.23,135.22,88.0079]
[1742054088388,13.06562141,135.24,135.22,88.0079]
[1742054091610,13.06562141,135.23,135.22,88.0079]
[1742054092999,13.06562141,135.24,135.22,88.0079]
[1742054095613,33.06562141,135.25,135.22,88.0079]
[1742054097917,0.03,135.26,135.23,13.06562141]
[1742054098135,0.03,135.26,135.24,13.06562141]
[1742054098307,0.03,135.26,135.23,95.25152141]
[1742054098504,13.06562141,135.25,135.23,80.5498]
[1742054099529,13.06562141,135.24,135.22,7.4581]
[1742054099728,13.06562141,135.23,135.22,7.4581]
[1742054100021,13.06562141,135.23,135.22,0.063]
[1742054100319,0.03,135.26,135.22,0.063]
[1742054100320,13.06562141,135.24,135.22,0.063]
[1742054102016,33.06562141,135.25,135.22,0.063]
[1742054103102,13.09562141,135.26,135.22,80.6128]
[1742054103305,0.03,135.26,135.22,93.67842141]
[1742054104123,0.03,135.26,135.23,25.8818]
[1742054104841,0.03,135.26,135.23,38.94742141]
[1742054107330,0.03,135.26,135.23,25.8818]
[1742054107635,0.03,135.26,135.23,38.94742141]
[1742054107930,0.03,135.26,135.23,119.49722141]
[1742054110629,0.03,135.26,135.23,106.4316]
[1742054111723,0.03,135.26,135.23,119.49722141]
[1742054112836,0.03,135.26,135.23,106.4316]
[1742054116924,0.03,135.26,135.23,119.49722141]
[1742054117822,0.0001,135.26,135.25,13.06562141]
[1742054118127,0.0001,135.26,135.25,95.17032141]
[1742054118331,0.0001,135.26,135.25,102.56402141]
[1742054119234,0.0001,135.26,135.25,89.4984]
[1742054122014,0.0001,135.26,135.25,102.56402141]
[1742054127315,0.0001,135.26,135.25,121.21367027]
[1742054128933,0.0001,135.26,135.25,102.56402141]
[1742054133146,0.0001,135.26,135.25,121.21367027]
[1742054133443,0.03,135.3,135.26,80.5497]
[1742054133645,0.03,135.3,135.27,13.06562141]
[1742054134643,0.03,135.3,135.27,19.50562141]
[1742054135245,0.03,135.3,135.28,7.392]
[1742054137131,0.03,135.3,135.28,87.9417]
[1742054146950,0.03,135.3,135.29,0.03]
[1742054147149,0.03,135.3,135.29,80.5797]
[1742054147354,0.03,135.3,135.29,87.9712]
[1742054160564,13.09562141,135.3,135.29,80.5797]
[1742054161095,13.09562141,135.3,135.29,87.9712]
[1742054162191,0.03,135.3,135.29,87.9712]
[1742054174196,13.09562141,135.3,135.29,87.9712]
[1742054174776,13.09562141,135.3,135.29,80.5797]
[1742054175401,13.09562141,135.3,135.29,0.03]
[1742054175778,13.37994455,135.3,135.29,0.03]
[1742054176177,32.02959341,135.3,135.29,0.03]
[1742054176895,32.02959341,135.3,135.27,0.03]
[1742054177102,33.06562141,135.28,135.27,0.03]
[1742054178800,51.99959341,135.28,135.27,0.03]
[1742054180814,33.34994455,135.28,135.27,0.03]
[1742054181603,33.06562141,135.28,135.27,0.03]
[1742054182736,20.0,135.28,135.27,0.03]
[1742054182910,33.06562141,135.28,135.27,0.03]
[1742054191127,20.0,135.28,135.27,0.03]
[1742054191422,33.06562141,135.28,135.27,0.03]
[1742054196602,33.09562141,135.28,135.27,0.03]
[1742054202823,13.09562141,135.28,135.27,0.03]
[1742054203942,0.0001,135.28,135.27,80.5797]
[1742054204442,0.0001,135.28,135.27,93.64532141]
[1742054205252,0.0001,135.28,135.27,80.5797]
[1742054205444,0.0001,135.28,135.27,87.9723]
[1742054206867,0.03,135.31,135.28,80.5496]
[1742054207027,0.03,135.31,135.3,13.06562141]
[1742054207028,0.0001,135.31,135.3,13.06562141]
[1742054207843,0.0001,135.32,135.3,20.45652141]
[1742054208141,0.0001,135.33,135.32,1.5206]
[1742054208349,0.0001,135.33,135.32,95.13582141]
[1742054209054,33.06562141,135.38,135.32,95.13582141]
[1742054209248,33.06562141,135.38,135.33,13.06562141]
[1742054209429,33.06562141,135.38,135.32,101.19542141]
[1742054209927,33.06562141,135.38,135.33,25.8626]
[1742054210258,13.06562141,135.34,135.33,7.3893]
[1742054211841,13.06562141,135.34,135.32,87.9393]
[1742054212153,13.06562141,135.33,135.32,87.9393]
[1742054213058,13.06562141,135.34,135.32,87.9393]
[1742054213437,13.06562141,135.35,135.32,87.9393]
[1742054214334,13.06562141,135.34,135.32,87.9393]
[1742054218259,13.06562141,135.33,135.32,80.5496]
[1742054220271,13.06562141,135.33,135.3,7.3908]
[1742054220463,13.06562141,135.31,135.3,7.3908]
[1742054226866,13.06562141,135.33,135.3,25.8682]
[1742054227782,13.06562141,135.31,135.3,7.3908]
[1742054232469,13.06562141,135.31,135.3,7.4538]
[1742054232771,13.06562141,135.32,135.3,7.4538]
[1742054236873,13.06562141,135.32,135.3,88.0034]
[1742054242250,13.06562141,135.31,135.3,7.4538]
[1742054244271,13.06562141,135.31,135.3,0.063]
[1742054251582,13.34994455,135.31,135.3,0.063]
[1742054251995,14.93694455,135.31,135.3,0.063]
[1742054252291,13.34994455,135.31,135.3,0.063]
[1742054257190,13.34994455,135.31,135.28,87.5345]
[1742054257378,13.06562141,135.29,135.28,7.3919]
[1742054259803,13.06562141,135.29,135.27,7.4556]
[1742054260103,13.06562141,135.28,135.27,7.4556]
[1742054262003,13.06562141,135.29,135.27,7.4556]
[1742054267010,13.06562141,135.29,135.28,9.23988232]
[1742054278531,13.34994455,135.29,135.28,1.84788232]
[1742054278698,20.0,135.26,135.25,0.063]
[1742054278905,33.34994455,135.26,135.25,0.063]
[1742054288036,13.34994455,135.26,135.25,0.063]
[1742054293555,13.06562141,135.26,135.25,0.063]
[1742054293760,13.09562141,135.27,135.25,0.063]
[1742054294925,0.03,135.27,135.25,0.063]
[1742054295371,0.03,135.27,135.25,7.4567]
[1742054295846,13.09562141,135.27,135.25,7.4567]
[1742054296053,13.06562141,135.26,135.25,7.4567]
[1742054297345,13.06562141,135.26,135.25,7.139169]
[1742054297824,13.09562141,135.27,135.25,7.139169]
[1742054299724,13.09562141,135.27,135.25,87.281769]
[1742054299933,0.03,135.27,135.25,87.281769]
[1742054303650,0.03,135.27,135.25,87.344769]
[1742054306757,13.09562141,135.27,135.25,87.344769]
[1742054308664,0.03,135.27,135.25,87.344769]
[1742054323666,13.09562141,135.27,135.25,87.344769]
[1742054324999,13.06562141,135.26,135.25,87.344769]
[1742054325202,13.34994455,135.26,135.25,0.063]
[1742054330374,17.14341451,135.26,135.25,0.063]
[1742054334000,17.14341451,135.26,135.25,0.063]
[1742054334891,13.34994455,135.26,135.25,0.063]
[1742054338498,13.37994455,135.26,135.25,0.063]
[1742054340601,32.02959341,135.26,135.25,0.063]
[1742054340806,84.29207905,135.26,135.25,0.063]
[1742054341103,20.28432314,135.23,135.22,0.063]
[1742054341296,33.34994455,135.23,135.22,0.063]
[1742054346296,51.99959341,135.23,135.22,0.063]
[1742054352811,58.37959341,135.23,135.22,0.063]
[1742054353412,62.13042766,135.23,135.22,0.063]
[1742054357317,69.52522766,135.23,135.22,0.063]
[1742054357528,13.06562141,135.19,135.18,7.3975]
[1742054358105,13.34994455,135.19,135.17,80.1426]
[1742054358304,13.06562141,135.18,135.17,80.1426]
[1742054358833,13.06562141,135.18,135.17,87.5406]
[1742054359352,13.06562141,135.18,135.17,80.1426]
[1742054361049,13.06562141,135.18,135.17,87.5406]
[1742054361248,13.06562141,135.18,135.17,80.1426]
[1742054361630,13.06562141,135.18,135.16,7.4614]
[1742054361829,0.28432314,135.19,135.16,7.4614]
[1742054361830,13.06562141,135.17,135.16,7.4614]
[1742054362133,13.34994455,135.17,135.16,0.063]
[1742054363147,13.34994455,135.17,135.16,7.4616]
[1742054363351,13.06562141,135.17,135.16,0.063]
[1742054369352,13.06562141,135.2,135.16,80.2056]
[1742054369861,13.06562141,135.17,135.16,80.2056]
[1742054371357,13.06562141,135.17,135.16,87.6042]
[1742054372550,13.06562141,135.2,135.16,106.1007]
[1742054372746,6.66432314,135.22,135.16,106.1007]
[1742054372940,20.0,135.19,135.16,106.1007]
[1742054373340,3.78083425,135.23,135.17,13.06562141]
[1742054373542,13.06562141,135.22,135.17,81.7307]
[1742054374458,13.06562141,135.21,135.18,25.8913]
[1742054374756,33.06562141,135.22,135.18,25.8913]
[1742054375463,0.03,135.26,135.18,25.8913]
[1742054375464,58.8443954,135.36,135.35,0.64216157]
[1742054375641,69.68297156,135.37,135.36,18.933972]
[1742054375848,0.03,135.39,135.37,0.28432314]
[1742054376159,0.03,135.39,135.38,116.74698871]
[1742054376370,0.03,135.41,135.38,32.82264247]
[1742054376560,0.03,135.41,135.4,20.45112141]
[1742054376758,0.03,135.41,135.4,100.59372141]
[1742054377065,0.0001,135.42,135.4,100.59372141]
[1742054377249,0.0001,135.42,135.41,13.06562141]
[1742054377448,101.47910587,135.43,135.41,13.06562141]
[1742054378165,0.03,135.45,135.42,15.21810642]
[1742054378370,0.03,135.45,135.42,115.7007177]
[1742054378864,0.03,135.45,135.43,7.3838]
[1742054379159,0.03,135.45,135.43,22.60190642]
[1742054379362,0.03,135.45,135.43,102.74450642]
[1742054380045,14.69696905,135.48,135.43,102.74450642]
[1742054380251,20.34001128,135.46,135.43,102.74450642]
[1742054380751,20.34001128,135.46,135.44,15.21810642]
[1742054381248,20.34001128,135.47,135.45,45.74436432]
[1742054381861,20.34001128,135.47,135.46,15.21810642]
[1742054382487,20.34001128,135.47,135.46,11.41931595]
[1742054383492,20.34001128,135.47,135.45,125.88696432]
[1742054383656,20.34001128,135.46,135.45,125.88696432]
[1742054383861,15.34001128,135.46,135.45,125.88696432]
[1742054385791,15.34001128,135.46,135.45,130.88696432]
[1742054386383,15.34001128,135.46,135.45,5.0]
[1742054386682,18.933972,135.51,135.45,5.0]
[1742054386867,20.34001128,135.46,135.45,5.0]
[1742054387069,18.49444802,135.46,135.45,5.0]
[1742054391490,18.49444802,135.46,135.45,10.0]
[1742054393260,18.49444802,135.46,135.45,15.0]
[1742054394567,18.49444802,135.46,135.45,20.0]
[1742054400499,0.03,135.46,135.45,112.5252]
[1742054402687,13.05209646,135.46,135.45,112.5252]
[1742054403298,0.03,135.46,135.45,112.5252]
[1742054405404,0.0001,135.46,135.45,112.5252]
[1742054405715,0.0001,135.46,135.45,150.26854532]
[1742054406008,13.02209646,135.52,135.47,80.1425]
[1742054406325,13.02209646,135.51,135.48,6.58]
[1742054406493,13.02209646,135.5,135.48,6.58]
[1742054406684,1.5704,135.55,135.48,6.58]
[1742054406891,13.02209646,135.51,135.49,7.3806]
[1742054407089,0.28432314,135.56,135.49,87.5231]
[1742054407290,6.5172,135.58,135.49,118.99669646]
[1742054407609,13.02209646,135.55,135.51,18.64964886]
[1742054407813,13.02209646,135.54,135.51,18.64964886]
[1742054407993,13.02209646,135.52,135.49,144.4027]
[1742054408308,13.02209646,135.52,135.5,6.58]
[1742054408705,0.14216157,135.58,135.5,6.58]
[1742054408901,13.02209646,135.53,135.51,7.3795]
[1742054409089,0.28432314,135.58,135.51,105.9708]
[1742054409296,13.02209646,135.54,135.51,105.9708]
[1742054409606,13.02209646,135.55,135.51,105.9708]
[1742054409821,0.03,135.6,135.52,18.64964886]
[1742054410116,13.02209646,135.56,135.52,104.95514886]
[1742054410889,52.08838584,135.59,135.53,7.3784]
[1742054411112,0.03,135.6,135.53,105.967]
[1742054411297,13.02209646,135.57,135.53,105.967]
[1742054411611,0.03,135.6,135.53,105.967]
[1742054411612,13.02209646,135.59,135.54,31.67174532]
[1742054411909,13.02209646,135.59,135.55,6.58]
[1742054412320,0.03,135.6,135.56,18.64964886]
[1742054412492,20.33217362,135.6,135.56,98.79214886]
[1742054412699,20.30217362,135.58,135.56,98.79214886]
[1742054413007,20.30217362,135.59,135.57,7.3762]
[1742054413499,20.30217362,135.58,135.56,87.5191]
[1742054413902,20.30217362,135.59,135.56,87.5191]
[1742054414094,20.33217362,135.6,135.56,87.5191]
[1742054414307,20.30217362,135.59,135.56,87.5191]
[1742054415309,20.33217362,135.6,135.56,87.5191]
[1742054416890,20.30217362,135.59,135.56,87.5191]
[1742054418214,20.33217362,135.6,135.56,87.5191]
[1742054418621,20.33217362,135.6,135.57,18.64964886]
[1742054418799,0.03,135.6,135.57,18.64964886]
[1742054419115,0.03,135.6,135.57,98.79214886]
[1742054419295,0.03,135.6,135.58,7.3757]
[1742054419695,0.03,135.6,135.58,87.5182]
[1742054420320,20.30217362,135.59,135.58,80.1425]
[1742054422017,48.26377038,135.59,135.55,80.1425]
[1742054422216,27.96159676,135.59,135.55,80.1425]
[1742054423312,20.30217362,135.56,135.55,80.1425]
[1742054423509,27.67897362,135.56,135.55,80.1425]
[1742054423818,27.96329676,135.56,135.5,80.1425]
[1742054424126,20.30217362,135.51,135.5,80.1425]
[1742054427721,20.30217362,135.51,135.47,7.3815]
[1742054427911,20.30217362,135.48,135.47,87.524]
[1742054428222,20.30217362,135.49,135.47,87.524]
[1742054429403,20.30217362,135.49,135.47,80.1425]
[1742054429711,20.30217362,135.48,135.47,80.1425]
[1742054434641,20.30217362,135.48,135.47,79.6425]
[1742054436428,20.30217362,135.49,135.47,87.0242]
[1742054438609,20.0,135.49,135.47,87.0242]
[1742054438814,20.30217362,135.5,135.47,87.0242]
[1742054439346,20.30217362,135.51,135.47,105.4784]
[1742054439738,20.30217362,135.5,135.47,105.4784]
[1742054440043,20.30217362,135.51,135.47,105.4784]
[1742054440214,13.00987134,135.51,135.47,105.4784]
[1742054441618,13.00987134,135.5,135.47,105.4784]
[1742054442266,20.33041949,135.5,135.47,105.4784]
[1742054442956,20.33041949,135.5,135.47,87.0242]
[1742054443163,20.33041949,135.48,135.47,79.6425]
[1742054446387,27.71151949,135.48,135.47,79.6425]
[1742054446566,27.99584263,135.48,135.45,25.0]
[1742054446871,20.33041949,135.46,135.45,25.0]
[1742054452067,27.71261949,135.46,135.45,25.0]
[1742054452264,20.33041949,135.46,135.45,25.0]
[1742054456565,20.33041949,135.47,135.45,32.3827]
[1742054458272,20.33041949,135.47,135.45,112.5252]
[1742054460178,20.33041949,135.46,135.45,112.5252]
[1742054461064,20.33041949,135.47,135.45,112.5252]
[1742054462589,20.36041949,135.48,135.45,112.5252]
[1742054462785,20.33041949,135.47,135.45,112.5252]
[1742054464374,13.01784257,135.47,135.45,112.5252]
[1742054464695,13.01784257,135.46,135.45,105.1425]
[1742054465690,13.01784257,135.46,135.45,112.5252]
[1742054465883,0.03,135.48,135.45,112.5252]
[1742054466087,13.04784257,135.48,135.45,112.5252]
[1742054466289,13.04784257,135.48,135.45,130.9821]
[1742054466683,0.03,135.48,135.45,143.99994257]
[1742054466871,0.03,135.48,135.46,13.01784257]
[1742054467286,0.03,135.48,135.45,143.99994257]
[1742054468299,0.03,135.48,135.46,31.66749143]
[1742054468597,0.0001,135.48,135.47,31.66749143]
[1742054468808,0.0001,135.48,135.47,39.04919143]
[1742054470280,13.01784257,135.54,135.5,18.64964886]
[1742054470474,13.01784257,135.54,135.5,98.79204886]
[1742054470886,13.01784257,135.55,135.51,25.8283]
[1742054471184,13.01784257,135.54,135.51,25.8283]
[1742054472134,13.01784257,135.53,135.51,7.3795]
[1742054472432,20.32073651,135.53,135.51,7.3795]
[1742054472938,20.32073651,135.54,135.51,7.3795]
[1742054474434,20.32073651,135.54,135.51,87.5219]
[1742054474924,20.32073651,135.54,135.51,105.9707]
[1742054476811,20.32073651,135.53,135.51,105.9707]
[1742054477433,20.32073651,135.52,135.51,87.5219]
[1742054477624,20.32073651,135.52,135.51,80.1424]
[1742054478317,20.32073651,135.52,135.49,7.3804]
[1742054478633,20.32073651,135.5,135.49,7.3804]
[1742054478819,20.32073651,135.5,135.49,87.5228]
[1742054479222,20.32073651,135.5,135.49,80.1424]
[1742054480727,20.32073651,135.5,135.46,80.1424]
[1742054480728,27.98515965,135.5,135.46,80.1424]
[1742054480936,20.32073651,135.47,135.46,80.1424]
[1742054481317,20.32073651,135.47,135.45,25.0]
[1742054481620,6.76432314,135.5,135.45,25.0]
[1742054481621,20.32073651,135.46,135.45,25.0]
[1742054481820,20.60505965,135.46,135.45,25.0]
[1742054482019,40.92579616,135.46,135.45,25.0]
[1742054482422,40.92579616,135.46,135.44,0.063]
[1742054482626,40.92579616,135.45,135.44,0.063]
[1742054483149,56.34359616,135.45,135.44,0.063]
[1742054483569,56.34359616,135.45,135.39,88.7282]
[1742054483732,20.32073651,135.4,135.39,88.7282]
[1742054484932,20.32073651,135.41,135.39,88.7282]
[1742054489244,20.32073651,135.41,135.39,88.7282]
[1742054490545,20.32073651,135.42,135.39,88.7282]
[1742054490948,20.32073651,135.41,135.39,88.7282]
[1742054493239,20.32073651,135.42,135.39,88.7282]
[1742054494339,28.49799808,135.45,135.39,88.7282]
[1742054494340,13.02742214,135.41,135.39,88.7282]
[1742054495558,13.02742214,135.41,135.39,81.3424]
[1742054495764,13.02742214,135.4,135.39,81.3424]
[1742054495936,13.02742214,135.4,135.38,0.063]
[1742054496140,13.02742214,135.39,135.38,0.063]
[1742054496947,0.14216157,135.42,135.38,0.063]
[1742054496948,13.02742214,135.4,135.38,0.063]
[1742054497154,13.02742214,135.41,135.38,0.063]
[1742054500862,13.02742214,135.41,135.39,7.386]
[1742054501243,33.02742214,135.42,135.39,88.7284]
[1742054503062,13.02742214,135.41,135.39,88.7284]
[1742054504444,13.02742214,135.4,135.39,88.7284]
[1742054506870,13.02742214,135.4,135.39,87.3284]
[1742054507571,13.02742214,135.41,135.39,87.3284]
[1742054509466,33.02742214,135.42,135.39,87.3284]
[1742054510273,33.02742214,135.42,135.39,105.7935]
[1742054512770,13.02742214,135.41,135.39,87.3284]
[1742054513158,20.0,135.42,135.39,87.3284]
[1742054513159,13.02742214,135.4,135.39,87.3284]
[1742054513559,13.02742214,135.4,135.39,79.9424]
[1742054514577,13.02742214,135.4,135.39,87.3284]
[1742054520162,13.02742214,135.4,135.39,79.9424]
[1742054520365,13.02742214,135.4,135.38,0.063]
[1742054520566,13.02742214,135.39,135.38,0.063]
[1742054530095,13.02742214,135.39,135.38,80.0054]
[1742054531297,13.02742214,135.39,135.38,0.063]
[1742054538094,65.42143384,135.39,135.38,0.063]
[1742054538277,72.80743384,135.39,135.38,0.063]
[1742054539410,0.28432314,135.38,135.34,7.4515]
[1742054539588,13.02742214,135.35,135.34,87.3939]
[1742054542195,0.28432314,135.38,135.34,87.3939]
[1742054542395,13.02742214,135.35,135.34,87.3939]
[1742054545783,52.25185013,135.38,135.34,87.3939]
[1742054545784,13.02742214,135.36,135.34,87.3939]
[1742054545979,13.02742214,135.37,135.34,87.3939]
[1742054546500,13.02742214,135.37,135.34,105.8658]
[1742054547205,33.02742214,135.38,135.34,105.8658]
[1742054549603,20.0,135.38,135.34,105.8658]
[1742054549797,33.02742214,135.38,135.34,105.8658]
[1742054550784,33.02742214,135.38,135.34,87.6939]
[1742054551000,1.5022,135.4,135.34,100.72132214]
[1742054551201,13.02742214,135.39,135.34,100.72132214]
[1742054551401,13.02742214,135.39,135.34,87.6939]
[1742054551588,13.02742214,135.39,135.34,106.1658]
[1742054552612,13.02742214,135.38,135.34,106.1658]
[1742054554118,13.02742214,135.37,135.34,106.1658]
[1742054554298,13.02742214,135.37,135.34,87.6939]
[1742054555588,7.3857,135.4,135.34,87.6939]
[1742054555788,13.02742214,135.37,135.34,87.6939]
[1742054558512,13.02742214,135.36,135.34,87.6939]
[1742054558709,13.02742214,135.35,135.34,80.3054]
[1742054559107,13.02742214,135.35,135.34,87.6941]
[1742054559913,13.02742214,135.36,135.34,87.6941]
[1742054560107,13.02742214,135.35,135.34,87.6941]
[1742054560592,13.02742214,135.36,135.34,87.6941]
[1742054561707,13.02742214,135.35,135.34,87.6941]
[1742054562708,13.02742214,135.35,135.34,80.3054]
[1742054563309,13.02742214,135.35,135.34,87.6941]
[1742054566914,6.38,135.37,135.34,87.6941]
[1742054566915,13.02742214,135.36,135.34,87.6941]
[1742054567111,19.40742214,135.37,135.34,87.6941]
[1742054567314,13.02742214,135.37,135.34,87.6941]
[1742054569310,13.05742214,135.38,135.34,87.6941]
[1742054572315,33.02742214,135.37,135.34,87.6941]
[1742054572698,13.02742214,135.36,135.34,87.6941]
[1742054573501,33.02742214,135.37,135.34,87.6941]
[1742054577018,0.03,135.38,135.34,119.19342214]
[1742054581201,0.03,135.38,135.36,7.3877]
[1742054581508,0.03,135.38,135.36,20.41512214]
[1742054581824,0.03,135.38,135.36,100.65752214]
[1742054584447,0.03,135.38,135.37,18.64964886]
[1742054584615,0.03,135.38,135.37,98.89204886]
[1742054585120,0.03,135.38,135.37,106.27914886]
[1742054586216,0.03,135.38,135.37,87.6295]
[1742054586414,13.05742214,135.38,135.37,87.6295]
[1742054586623,65.1671107,135.38,135.34,80.3054]
[1742054586825,13.02742214,135.35,135.34,87.6941]
[1742054588008,13.02742214,135.35,135.34,0.063]
[1742054588314,13.02742214,135.35,135.34,7.4517]
[1742054589323,13.02742214,135.35,135.34,0.063]
[1742054599522,13.31174528,135.35,135.34,0.063]
[1742054599732,0.14216157,135.31,135.25,11.36421337]
[1742054600041,13.02742214,135.26,135.25,11.36421337]
[1742054602538,13.02742214,135.26,135.25,0.063]
[1742054602738,13.31174528,135.26,135.25,0.063]
[1742054603120,0.28432314,135.25,135.24,0.063]
[1742054603315,85.42143384,135.25,135.24,0.063]
[1742054603513,91.90143384,135.25,135.24,0.063]
[1742054603834,91.90143384,135.25,135.2,0.063]
[1742054604032,13.02742214,135.21,135.2,82.863]
[1742054604330,13.02742214,135.21,135.2,0.063]
[1742054605647,13.31174528,135.21,135.2,0.063]
[1742054606642,13.02742214,135.21,135.2,0.063]
[1742054609323,13.31174528,135.21,135.2,0.063]
[1742054609521,13.31174528,135.21,135.17,82.8]
[1742054609723,13.02742214,135.18,135.17,82.8]
[1742054609947,26.05484428,135.18,135.17,82.8]
[1742054610132,65.1371107,135.18,135.16,0.063]
[1742054610441,65.1371107,135.17,135.16,0.063]
[1742054613853,13.02742214,135.17,135.16,0.063]
[1742054614426,13.02742214,135.17,135.15,64.56569545]
[1742054614732,8.0356,135.2,135.15,83.06359545]
[1742054615032,13.02742214,135.17,135.15,83.06359545]
[1742054615623,0.28432314,135.23,135.15,83.06359545]
[1742054615931,13.02742214,135.17,135.15,83.06359545]
[1742054616753,13.02742214,135.18,135.15,83.06359545]
[1742054617043,13.02742214,135.18,135.15,84.68199545]
[1742054617239,13.02742214,135.19,135.15,84.68199545]
[1742054619040,13.02742214,135.18,135.15,84.68199545]
[1742054619627,13.02742214,135.19,135.15,121.67789545]
[1742054619831,53.64528856,135.24,135.16,18.64964886]
[1742054620031,0.28432314,135.25,135.18,18.64964886]
[1742054620349,13.02742214,135.25,135.2,31.677071]
[1742054620552,13.02742214,135.25,135.2,88.84366645]
[1742054620847,13.02742214,135.25,135.21,25.8856]
[1742054621036,13.02742214,135.24,135.21,25.8856]
[1742054622935,20.40719383,135.24,135.21,25.8856]
[1742054623441,20.40719383,135.25,135.21,25.8856]
[1742054623749,20.40719383,135.24,135.21,25.8856]
[1742054623945,20.40719383,135.24,135.21,83.05219545]
[1742054627264,18.55862832,135.24,135.21,83.05219545]
[1742054627644,1.5084,135.31,135.24,18.64964886]
[1742054627944,201.9286,135.33,135.25,57.16659545]
[1742054627945,20.40719383,135.29,135.25,57.16659545]
[1742054628133,20.40719383,135.28,135.25,57.16659545]
[1742054628738,20.40719383,135.28,135.26,7.3931]
[1742054629256,20.40719383,135.27,135.26,7.3931]
[1742054631868,20.40719383,135.28,135.26,25.876]
[1742054632764,20.40719383,135.28,135.26,83.04259545]
[1742054636167,20.40719383,135.29,135.26,83.04259545]
[1742054637875,0.063,135.28,135.26,83.04259545]
[1742054638364,0.063,135.28,135.26,103.44978928]
[1742054638536,20.40719383,135.32,135.27,39.05684269]
[1742054638742,20.40719383,135.32,135.27,96.22343814]
[1742054638948,20.40719383,135.32,135.27,97.75343814]
[1742054639864,20.40719383,135.33,135.28,20.40719383]
[1742054640173,20.40719383,135.32,135.28,25.8721]
[1742054641074,20.40719383,135.31,135.28,25.8721]
[1742054641475,20.40719383,135.32,135.28,25.8721]
[1742054641680,20.40719383,135.31,135.28,25.8721]
[1742054641990,20.40719383,135.32,135.28,25.8721]
[1742054644382,13.0460796,135.32,135.28,25.8721]
[1742054644723,13.0460796,135.32,135.28,83.03869545]
[1742054646398,13.0460796,135.3,135.28,64.55859545]
[1742054646698,13.0460796,135.31,135.28,83.03869545]